Workbook

Sheet 目录
B1: 政府决算公开表格样式（参考）目录
B2: 一、2017年随州市（州）一般公共预算收入情况表
B3: 二、2017年本级一般公共预算收入情况表
B4: 三、2017年随州（州）一般公共预算支出情况表
B5: 四、2017年本级一般公共预算支出情况表
B6: 五、2017年本级专项转移支付情况表
B7: 六、2017年随州政府一般债务限额余额表
B8: 七、2017年随州市（州）政府性基金收入情况表
B9: 八、2017年本级政府性基金收入情况表
B10: 九、2017年随州市（州）政府性基金支出情况表
B11: 十、2017年本级政府性基金支出情况表
B12: 十一、2017年本级政府性基金专项转移支付情况表
B13: 十二、2017年随州政府专项债务限额余额表
B14: 十三、2017年随州市（州）国有资本经营收入情况表
B15: 十四、2017年本级国有资本经营收入情况表
B16: 十五、2017年随州市（州）国有资本经营支出情况表
B17: 十六、2017年本级国有资本经营支出情况表
B18: 十七、2017年本级国有资本经营专项转移支付情况表
B19: 十八、2017年随州市（州）社会保障基金收入情况表
B20: 十九、2017年本级社会保障基金收入情况表
B21: 二十、2017年随州市（州）社会保障基金支出情况表
B22: 二十一、2017年本级社会保障基金支出情况表
B23: 二十二、2017年随州市（州）财政收入情况表
B24: 二十三、2017年随州市（州）财政支出情况表

Sheet 2017年随州市（州）一般公共预算收入情况表
A1: 2017年随州市（州）一般公共预算收入情况表
A2: 表一 | D2: 单位：万元
A3: 项 目 | B3: 预算数 | C3: 决算数 | D3: 占预算数% | E3: 国库11月份数据
A4: 一、税收收入 | B4: =SUM(B5:B18) -> 313650 | C4: =SUM(C5:C18) -> 325309 | D4: 103.7% | F4: =12/11 -> 1.090909091
A5: 增值税 | B5: =95363.3+37890 -> 133253 | C5: 137655 | D5: 103.3% | E5: 7,849,387
A6: 企业所得税 | B6: 30726 | C6: 41023 | D6: 133.5% | E6: 59,090
A7: 个人所得税 | B7: 12271 | C7: 15405 | D7: 125.5% | E7: 3,417,171
A8: 资源税 | B8: 11951 | C8: 7681 | D8: 64.3% | E8: 1,112,634
A9: 城市维护建设税 | B9: 22108 | C9: 25356 | D9: 114.7% | E9: 127,505
A10: 房产税 | B10: 7099 | C10: 7787 | D10: 109.7% | E10: 1,515,426
A11: 印花税 | B11: 4175 | C11: 3888 | D11: 93.1% | E11: 784,611
A12: 城镇土地使用税 | B12: 7593 | C12: 8598 | D12: 113.2% | E12: 312,645
A13: 土地增值税 | B13: 15552 | C13: 18081 | D13: 116.3% | E13: 650,773
A14: 车船税 | B14: 5612 | C14: 5975 | D14: 106.5% | E14: 2,107,794
A15: 耕地占用税 | B15: 40336 | C15: 35491 | D15: 88.0% | E15: 221,825
A16: 契税 | B16: 22929 | C16: 18369 | D16: 80.1% | E16: 981,362
A17: 烟叶税 | B17: 0 | E17: 1,872,669
A18: 其他税收收入 | B18: =45.43 -> 45 | D18: 0.0% | E18: 19,574
E19: 28
A20: 二、非税收入 | B20: =SUM(B21:B26) -> 173653 | C20: 160653 | D20: 92.5%
A21: 专项收入 | B21: =24762+700+2448 -> 27910 | C21: 19634 | D21: 70.3% | E21: 1,575,382
A22: 行政事业性收费收入 | B22: 91629 | C22: 66470 | D22: 72.5% | E22: 2,860,806
A23: 罚没收入 | B23: 22702 | C23: 21158 | D23: 93.2% | E23: 730,631
A24: 国有资本经营收入 | B24: 3456 | C24: 7550 | D24: 218.5% | E24: 392,604
A25: 国有资源(资产)有偿使用收入 | B25: 23632 | C25: 38390 | D25: 162.4% | E25: 2,301,672
A26: 其他收入 | B26: =7472-700-2448 -> 4324 | C26: 7451 | D26: 172.3% | E26: 32,852
E27: 274,618
E28: 493141
A30: 收 入 合 计 | B30: =B20+B4 -> 487303 | C30: =C4+C20 -> 485962 | D30: 99.7%

Sheet 2017年本级一般公共预算收入情况表
A1: 2017年本级一般公共预算收入情况表
A2: 表二 | G2: 单位：万元
A3: 项 目 | B3: 预算数 | C3: 调整预算数 | D3: 预计完成数 | E3: 决算数 | F3: 占预计完成% | G3: 占调整预算数%
A4: 一、本级一般公共预算收入 | B4: =B5+B21 -> 132992 | C4: =C5+C21 -> 127357 | E4: =E5+E21 -> 125819 | G4: 98.8%
A5: （一）税收收入 | B5: 77780 | C5: 84475 | E5: 80026 | G5: 94.7%
A6: 增值税 | B6: 24756 | C6: 28932 | E6: 26914 | G6: 93.0%
A7: 企业所得税 | B7: 10858 | C7: 15374 | E7: 15332 | G7: 99.7%
A8: 个人所得税 | B8: 4431 | C8: 5141 | E8: 5338 | G8: 103.8%
A9: 资源税 | E9: 0
A10: 城市维护建设税 | B10: 4698 | C10: 4421 | E10: 4310 | G10: 97.5%
A11: 房产税 | B11: 1752 | C11: 2335 | E11: 2231 | G11: 95.5%
A12: 印花税 | B12: 1215 | C12: 1273 | E12: 741 | G12: 58.2%
A13: 城镇土地使用税 | B13: 1516 | C13: 1588 | E13: 1039 | G13: 65.4%
A14: 土地增值税 | B14: 6139 | C14: 5431 | E14: 5289 | G14: 97.4%
A15: 车船税 | B15: 3041 | C15: 3185 | E15: 3125 | G15: 98.1%
A16: 耕地占用税 | B16: 17640 | C16: 14978 | E16: 14073 | G16: 94.0%
A17: 契税 | B17: 1734 | C17: 1817 | E17: 1634 | G17: 89.9%
A18: 烟叶税 | E18: 0
A19: 其他税收收入 | E19: 0
A21: （二）非税收入 | B21: 55212 | C21: 42882 | E21: 45793 | G21: 106.8%
A22: 专项收入 | B22: 6997 | C22: 4934 | E22: 5455 | G22: 110.6%
A23: 行政事业性收费收入 | B23: 26643 | C23: 20493 | E23: 21732 | G23: 106.0%
A24: 罚没收入 | B24: 5764 | C24: 4977 | E24: 6138 | G24: 123.3%
A25: 国有资本经营收入 | B25: 3520 | C25: 4000 | E25: 4000 | G25: 100.0%
A26: 国有资源(资产)有偿使用收入 | B26: 9168 | C26: 5855 | E26: 6302 | G26: 107.6%
A27: 其他收入 | B27: 3120 | C27: 2623 | E27: 2166 | G27: 82.6%
A30: 二、转移性收入 | B30: =B31+B38+B59+B80+B85 -> 156953 | C30: =C31+C38+C59+C80+C85 -> 185948 | E30: =E31+E38+E59+E80 -> 140184 | G30: 75.4%
A31: （一）返还性收入 | B31: 22548 | C31: 22548 | E31: =SUM(E32:E37) -> 28518 | G31: 126.5%
A32: 所得税基数返还收入 | E32: 146
A33: 成品油税费改革税收返还收入 | E33: 2801
A34: 增值税税收返还收入 | E34: 7093
A35: 消费税税收返还收入 | E35: 1345
A36: 增值税“五五分享”税收返还收入 | E36: 17133
A37: 其他税收返还收入 | E37: 0
A38: （二）一般性转移支付收入 | B38: =SUM(B39:B58) -> 35002 | C38: =SUM(C39:C58) -> 35002 | E38: =SUM(E39:E58) -> 41362 | G38: 118.2%
A39: 体制补助收入 | E39: 15
A40: 均衡性转移支付收入 | B40: 1543 | C40: 1543 | E40: 33407 | G40: 2165.1%
A41: 县级基本财力保障机制奖补资金收入 | B41: 24220 | C41: 24220 | E41: 13871 | G41: 57.3%
A42: 结算补助收入 | B42: -31804 | C42: -31804 | E42: -38833 | G42: 122.1%
A43: 资源枯竭型城市转移支付补助收入 | E43: 0
A44: 企业事业单位划转补助收入 | E44: 0
A45: 成品油税费改革转移支付补助收入 | B45: 3370 | C45: 3370 | E45: 4778 | G45: 141.8%
A46: 基层公检法司转移支付收入 | B46: 4207 | C46: 4207 | E46: 4053 | G46: 96.3%
A47: 城乡义务教育转移支付收入 | B47: 502 | C47: 502 | E47: 475 | G47: 94.6%
A48: 基本养老金转移支付收入 | B48: 7589 | C48: 7589 | E48: 8084 | G48: 106.5%
A49: 城乡居民医疗保险转移支付收入 | E49: 9
A50: 农村综合改革转移支付收入 | E50: 0
A51: 产粮(油)大县奖励资金收入 | B51: 140 | C51: 140 | E51: 41 | G51: 29.3%
A52: 重点生态功能区转移支付收入 | E52: 0
A53: 固定数额补助收入 | B53: 13066 | C53: 13066 | E53: 14965 | G53: 114.5%
A54: 革命老区转移支付收入 | B54: 195 | C54: 195 | E54: 464 | G54: 237.9%
A55: 民族地区转移支付收入 | E55: 0
A56: 边疆地区转移支付收入 | E56: 0
A57: 贫困地区转移支付收入 | E57: 0
A58: 其他一般性转移支付收入 | B58: 11974 | C58: 11974 | E58: 33 | G58: 0.3%
A59: （三）专项转移支付收入 | B59: 43078 | C59: 55313 | E59: =SUM(E60:E79) -> 55028 | G59: 99.5%
A60: 一般公共服务 | B60: 3120 | C60: 1627 | E60: 1500 | G60: 92.2%
A61: 外交 | E61: 0
A62: 国防 | E62: 0
A63: 公共安全 | B63: 853 | C63: 166 | E63: 212 | G63: 127.7%
A64: 教育 | B64: 50 | C64: 3462 | E64: 4605 | G64: 133.0%
A65: 科学技术 | B65: 2785 | C65: 41 | E65: 242 | G65: 590.2%
A66: 文化体育与传媒 | B66: 1198 | C66: 371 | E66: 475 | G66: 128.0%
A67: 社会保障和就业 | B67: 9694 | C67: 7457 | E67: 5373 | G67: 72.1%
A68: 医疗卫生与计划生育 | B68: 5260 | C68: 5012 | E68: 4879 | G68: 97.3%
A69: 节能环保 | B69: 2020 | C69: 1870 | E69: 1565 | G69: 83.7%
A70: 城乡社区 | B70: 1900 | C70: 380 | E70: 0 | G70: 0.0%
A71: 农林水 | B71: 5497 | C71: 8182 | E71: 8714 | G71: 106.5%
A72: 交通运输 | B72: 1198 | C72: 3319 | E72: 3319 | G72: 100.0%
A73: 资源勘探信息等 | C73: 291 | E73: 541 | G73: 185.9%
A74: 商业服务业等 | B74: 1000 | C74: 347 | E74: 756 | G74: 217.9%
A75: 金融 | E75: 0
A76: 国土海洋气象等 | B76: 2036 | C76: 387 | E76: 387 | G76: 100.0%
A77: 住房保障 | B77: 4159 | C77: 22021 | E77: 22021 | G77: 100.0%
A78: 粮油物资储备 | B78: 621 | C78: 230 | E78: 250 | G78: 108.7%
A79: 其他收入 | B79: 1687 | C79: 150 | E79: 189 | G79: 126.0%
A80: （四）上解收入 | B80: 19954 | C80: 19954 | E80: 15276 | G80: 76.6%
A81: …
A82: …
A83: （五）上年结转收入
A85: （六）调入资金 | B85: 36371 | C85: 53131 | E85: =SUM(E86:E88) -> 25279 | G85: 47.6%
A86: 从政府性基金调入 | E86: 0
A87: 从国有资本经营调入 | E87: 29
A88: 从其他资金调入一般公共预算 | B88: 36371 | C88: 53131 | E88: 25250 | G88: 47.5%
A90: 三、债务收入② | C90: 5460 | E90: =SUM(E91:E94) -> 25075 | G90: 459.2%
A91: 地方政府一般债券转贷收入 | B91: 0 | C91: 5460 | E91: 25075 | G91: 459.2%
A92: 地方政府向外国政府借款转贷收入
A93: 地方政府向国际组织借款转贷收入
A94: 地方政府其他一般债务转贷收入
A96: 收 入 合 计 | B96: =B4+B30+B90 -> 289945 | C96: =C4+C30+C90 -> 318765 | E96: =E4+E30+E83+E85+E90+E80 -> 331633 | G96: 104.0%

Sheet 2017年随州市（州）一般公共预算支出情况表
A1: 2017年随州市（州）一般公共预算支出情况表
A2: 表三 | D2: 单位：万元 | E2: 1.09
A3: 项目 | B3: 预算数 | C3: 决算数 | D3: 占预算数% | E3: 11月底国库数据 | F3: 12月国库数据 | G3: 一般公共预算支出合计 | H3: 60482045
A4: 一、一般公共服务支出 | B4: 168406 | C4: 173160 | D4: 102.8% | E4: 6,617,823 | F4: 7,281,378 | G4: 一般公共服务支出 | H4: 6617823
A5: 二、外交支出 | B5: 0 | C5: 0 | E5: 3,467,180 | F5: 3,566,655 | G5: 国防支出 | H5: 26490
A6: 三、国防支出 | B6: 847 | C6: 877 | D6: 103.5% | E6: 9,875,601 | F6: 10,439,752 | G6: 公共安全支出 | H6: 3467180
A7: 四、公共安全支出 | B7: 52628 | C7: 54096 | D7: 102.8% | E7: 1,914,718 | F7: 1,903,015 | G7: 教育支出 | H7: 9875601
A8: 五、教育支出 | B8: 210485 | C8: 246293 | D8: 117.0% | E8: 713,774 | F8: 957,271 | G8: 科学技术支出 | H8: 1914718
A9: 六、科学技术支出 | B9: 16613 | C9: 15033 | D9: 90.5% | E9: 10,566,207 | F9: 9,962,319 | G9: 文化体育与传媒支出 | H9: 713774
A10: 七、文化体育与传媒支出 | B10: 11497 | C10: 12997 | D10: 113.1% | E10: 6,241,638 | F10: 5,842,454 | G10: 社会保障和就业支出 | H10: 10566207
A11: 八、社会保障和就业支出 | B11: 224153 | C11: 258736 | D11: 115.4% | E11: 1,299,798 | F11: 1,528,366 | G11: 医疗卫生与计划生育支出 | H11: 6241638
A12: 九、医疗卫生与计划生育支出 | B12: 158470 | C12: 178730 | D12: 112.8% | E12: 6,594,734 | F12: 5,979,057 | G12: 节能环保支出 | H12: 1299798
A13: 十、节能环保支出 | B13: 21411 | C13: 17429 | D13: 81.4% | E13: 5,138,310 | F13: 6,649,628 | G13: 城乡社区支出 | H13: 6594734
A14: 十一、城乡社区支出 | B14: 119063 | C14: 92594 | D14: 77.8% | E14: 2,320,011 | F14: 3,688,802 | G14: 农林水支出 | H14: 5138310
A15: 十二、农林水支出 | B15: 214484 | C15: 189217 | D15: 88.2% | E15: 1,132,794 | F15: 1,907,282 | G15: 交通运输支出 | H15: 2320011
A16: 十三、交通运输支出 | B16: 97441 | C16: 74951 | D16: 76.9% | E16: 253,628 | F16: 347,790 | G16: 资源勘探信息等支出 | H16: 1132794
A17: 十四、资源勘探信息等支出 | B17: 17780 | C17: 18975 | D17: 106.7% | E17: 34,617 | F17: 47,056 | G17: 商业服务业等支出 | H17: 253628
A18: 十五、商业服务业等支出 | B18: 9712 | C18: 11716 | D18: 120.6% | E18: 63,471 | F18: 56,335 | G18: 金融支出 | H18: 34617
A19: 十六、金融支出 | B19: 160 | C19: 0 | D19: 0.0% | E19: 629,406 | F19: 463,181 | G19: 援助其他地区支出 | H19: 63471
A20: 十七、援助其他地区支出 | C20: 200 | E20: 2,071,785 | F20: 2,319,387 | G20: 国土海洋气象等支出 | H20: 629406
A21: 十八、国土海洋气象等支出 | B21: 34778 | C21: 30806 | D21: 88.6% | E21: 227,969 | F21: 368,642 | G21: 住房保障支出 | H21: 2071785
A22: 十九、住房保障支出 | B22: 37184 | C22: 83560 | D22: 224.7% | G22: 粮油物资储备支出 | H22: 227969
A23: 二十、粮油物资储备支出 | B23: 17149 | C23: 16464 | D23: 96.0% | E23: 360,015 | F23: 676,627 | G23: 其他支出(类) | H23: 333525
A24: 二十一、其他支出 | B24: 66460 | C24: 35183 | D24: 52.9% | E24: 958,300 | F24: 545,679 | G24: 债务付息支出 | H24: 958300
A25: 二十二、债务付息支出 | B25: 16809 | C25: 18691 | D25: 111.2% | E25: 266 | G25: 债务发行费用支出 | H25: 266
A26: 其中:地方政府一般债券付息支出 | B26: 16483 | C26: 18691 | D26: 113.4%
A27: 二十三、债务发行费用支出 | B27: 105 | C27: 99 | D27: 94.3%
A31: 支 出 合 计 | B31: =SUM(B4:B27)-B26 -> 1495636 | C31: =SUM(C4:C25)+C27 -> 1529807 | D31: 102.3% | E31: =SUM(E4:E24) -> 60,481,779 | F31: =SUM(F4:F24) -> 64,530,676

Sheet 2017年本级一般公共预算
B1: 2017年本级一般公共预算
B2: 表四 | I2: 单位：万元
B3: 项目 | C3: 预算数 | D3: 调整预算数 | E3: 预计完成数 | F3: 决算数 | G3: 占预计完成% | H3: 占调整预算数% | I3: 备 注
B4: 一、本级一般公共预算支出 | C4: 251074 | D4: =D5+D295+D313+D434+D489+D545+D594+D711+D783+D860+D884+D1015+D1079+D1155+D1182+D1211+D1221+D1300+D1318+D1371+D1374+D1382 -> 276447 | E4: =SUMIFS(E$4:E$2147,#REF!,#REF!&"??") ->  | F4: 256836 | G4: =IF(E4=0,0,F4/E4) ->  | H4: =F4/D4 -> 92.9%
B5: 一般公共服务支出 | C5: =C6+C18+C39+C51+C62+C73+C85+C104+C119+C128+C139+C151+C161+C174+C181+C188+C197+C203+C210+C218+C225+C231+C237+C249+C255+C27 -> 33279 | D5: =D6+D18+D39+D51+D62+D73+D85+D104+D119+D128+D139+D151+D161+D174+D181+D188+D197+D203+D210+D218+D225+D231+D237+D249+D255+D27 -> 34174 | F5: 31682 | H5: =F5/D5 -> 92.7%
B6: 人大事务 | C6: =SUBTOTAL(9,C7:C17) -> 1716 | D6: =SUBTOTAL(9,D7:D17) -> 2005 | F6: 1702 | H6: 84.9%
B7: 行政运行 | C7: 1335 | D7: 1468 | F7: 1145 | H7: 78.0%
B8: 一般行政管理事务 | C8: 8 | D8: 33 | F8: 141 | H8: 424.3%
B9: 机关服务 | F9: 0
B10: 人大会议 | D10: 131 | F10: 131 | H10: 100.0%
B11: 人大立法 | C11: 225 | D11: 225 | F11: 40 | H11: 17.8%
B12: 人大监督 | F12: 50
B13: 人大代表履职能力提升 | C13: 15 | D13: 15 | F13: 35 | H13: 233.3%
B14: 代表工作 | C14: 133 | D14: 133 | F14: 108 | H14: 81.5%
B15: 人大信访工作 | F15: 0
B16: 事业运行 | F16: 0
B17: 其他人大事务支出 | F17: 52
B18: 政协事务 | C18: =SUBTOTAL(9,C19:C26) -> 1359 | D18: =SUBTOTAL(9,D19:D26) -> 1597 | F18: 1596 | H18: 100.0%
B19: 行政运行 | C19: 948 | D19: 1100 | F19: 934 | H19: 84.9%
B20: 一般行政管理事务 | D20: 31 | F20: 92 | H20: 296.8%
B21: 机关服务 | C21: 18 | D21: 18 | F21: 10 | H21: 55.6%
B22: 政协会议 | C22: 88 | D22: 143 | F22: 133 | H22: 93.0%
B23: 委员视察 | C23: 131 | D23: 131 | F23: 121 | H23: 92.4%
B24: 参政议政 | C24: 104 | D24: 104 | F24: 106 | H24: 101.9%
B25: 事业运行 | F25: 0
B26: 其他政协事务支出 | C26: 70 | D26: 70 | F26: 200 | H26: 285.7%
B27: 政府办公厅(室)及相关机构事务 | C27: =SUBTOTAL(9,C28:C38) -> 4339 | D27: =SUBTOTAL(9,D28:D38) -> 4900 | F27: 6111 | H27: 124.7%
B28: 行政运行 | C28: 1878 | D28: 1951 | F28: 1079 | H28: 55.3%
B29: 一般行政管理事务 | C29: 345 | D29: 345 | F29: 172 | H29: 49.9%
B30: 机关服务 | C30: 699 | D30: 816 | F30: 1060 | H30: 129.9%
B31: 专项服务 | C31: 248 | D31: 288 | F31: 230 | H31: 79.9%
B32: 专项业务活动 | C32: 20 | D32: 55 | F32: 425 | H32: 768.5%
B33: 政务公开审批 | C33: 6 | D33: 26 | F33: 221 | H33: 850.0%
B34: 法制建设 | C34: 199 | D34: 203 | F34: 196 | H34: 96.7%
B35: 信访事务 | C35: 539 | D35: 551 | F35: 589 | H35: 106.8%
B36: 参事事务 | F36: 0
B37: 事业运行 | C37: 343 | D37: 343 | F37: 381 | H37: 111.1%
B38: 其他政府办公厅(室)及相关机构事务支出 | C38: 63 | D38: 322 | F38: 1758 | H38: 546.7%
B39: 发展与改革事务 | C39: =SUBTOTAL(9,C40:C50) -> 2165 | D39: =SUBTOTAL(9,D40:D50) -> 1618 | E39: 0 | F39: 1231 | H39: 76.1%
B40: 行政运行 | C40: 1597 | D40: 978 | F40: 481 | H40: 49.2%
B41: 一般行政管理事务 | F41: 112
B42: 机关服务 | F42: 0
B43: 战略规划与实施 | F43: 0
B44: 日常经济运行调节 | F44: 0
B45: 社会事业发展规划 | F45: 0
B46: 经济体制改革研究 | F46: 10
B47: 物价管理 | C47: 550 | D47: 557 | F47: 367 | H47: 65.8%
B48: 应对气候变化管理事务 | F48: 0
B49: 事业运行 | C49: 18 | D49: 18 | F49: 17 | H49: 92.9%
B50: 其他发展与改革事务支出 | D50: 64 | F50: 244 | H50: 381.3%
B51: 统计信息事务 | C51: =SUBTOTAL(9,C52:C61) -> 721 | D51: =D52+D56 -> 722 | F51: 978 | H51: 135.5%
B52: 行政运行 | C52: 666 | D52: 705 | F52: 492 | H52: 69.8%
B53: 一般行政管理事务 | F53: 40
B54: 机关服务 | F54: 0
B55: 信息事务 | F55: 30
B56: 专项统计业务 | C56: 55 | D56: 16 | F56: 115 | H56: 704.7%
B57: 统计管理 | D57: 145 | F57: 165 | H57: 113.8%
B58: 专项普查活动 | F58: 0
B59: 统计抽样调查 | F59: 10
B60: 事业运行 | F60: 0
B61: 其他统计信息事务支出 | D61: 4 | F61: 126 | H61: 3150.0%
B62: 财政事务 | C62: =SUBTOTAL(9,C63:C72) -> 2091 | D62: =SUBTOTAL(9,D63:D72) -> 2225 | F62: 2229 | H62: 100.2%
B63: 行政运行 | C63: 849 | D63: 912 | F63: 915 | H63: 100.3%
B64: 一般行政管理事务 | C64: 392 | D64: 392 | F64: 225 | H64: 57.4%
B65: 机关服务 | C65: 32 | D65: 32 | F65: 0 | H65: 0.0%
B66: 预算改革业务 | C66: 80 | D66: 105 | F66: 55 | H66: 52.5%
B67: 财政国库业务 | C67: 95 | D67: 142 | F67: 281 | H67: 198.0%
B68: 财政监察 | F68: 34
B69: 信息化建设 | C69: 465 | D69: 465 | F69: 211 | H69: =F69/D69 -> 45.4%
B70: 财政委托业务支出 | F70: 27
B71: 事业运行 | F71: 0
B72: 其他财政事务支出 | C72: 177 | D72: 177 | F72: 481 | H72: 271.8%
B73: 税收事务 | C73: 4500 | D73: 4500 | F73: 2800 | H73: 62.2%
B74: 行政运行 | C74: 4500 | D74: 4500 | F74: 0 | H74: 0.0%
B75: 一般行政管理事务 | F75: 0
B76: 机关服务 | F76: 0
B77: 税务办案 | F77: 0
B78: 税务登记证及发票管理 | F78: 0
B79: 代扣代收代征税款手续费 | F79: 0
B80: 税务宣传 | F80: 0
B81: 协税护税 | F81: 0
B82: 信息化建设 | F82: 0
B83: 事业运行 | F83: 0
B84: 其他税收事务支出 | F84: 2800
B85: 审计事务 | C85: =SUBTOTAL(9,C86:C93) -> 1414 | D85: =SUBTOTAL(9,D86:D93) -> 1425 | F85: 639 | H85: 44.8%
B86: 行政运行 | C86: 529 | D86: 540 | F86: 400 | H86: 74.0%
B87: 一般行政管理事务 | C87: 735 | D87: 735 | F87: 26 | H87: 3.5%
B88: 机关服务 | F88: 0
B89: 审计业务 | F89: 190
B90: 审计管理 | F90: 0
B91: 信息化建设 | F91: 0
B92: 事业运行 | F92: 0
B93: 其他审计事务支出 | C93: 150 | D93: 150 | F93: 23 | H93: 15.3%
B94: 海关事务 | F94: 0
B95: 行政运行 | F95: 0
B96: 一般行政管理事务 | F96: 0
B97: 机关服务 | F97: 0
B98: 收费业务 | F98: 0
B99: 缉私办案 | F99: 0
B100: 口岸电子执法系统建设与维护 | F100: 0
B101: 信息化建设 | F101: 0
B102: 事业运行 | F102: 0
B103: 其他海关事务支出 | F103: 0
B104: 人力资源事务 | C104: =SUBTOTAL(9,C105:C118) -> 1165 | D104: =SUBTOTAL(9,D105:D117) -> 1171 | F104: 280 | H104: 23.9%
B105: 行政运行 | C105: 769 | D105: 774 | F105: 131 | H105: 16.9%
B106: 一般行政管理事务 | C106: 8 | D106: 8 | F106: 9 | H106: 114.4%
B107: 机关服务 | F107: 0
B108: 政府特殊津贴 | F108: 12
B109: 资助留学回国人员 | F109: 0
B110: 军队转业干部安置 | C110: 5 | D110: 5 | F110: 6 | H110: 120.0%
B111: 博士后日常经费 | F111: 0
B112: 引进人才费用 | C112: 250 | D112: 250 | F112: 48 | H112: 19.2%
B113: 公务员考核 | F113: 0
B114: 公务员履职能力提升 | F114: 0
B115: 公务员招考 | C115: 15 | D115: 15 | F115: 0 | H115: 0.0%
B116: 公务员综合管理 | F116: 0
B117: 事业运行 | C117: 118 | D117: 118 | F117: 35 | H117: 29.6%
B118: 其他人力资源事务支出 | D118: 37 | F118: 39 | H118: 105.4%
B119: 纪检监察事务 | C119: =SUBTOTAL(9,C120:C127) -> 4526 | D119: =SUBTOTAL(9,D120:D127) -> 4581 | F119: 3791 | H119: 82.8%
B120: 行政运行 | C120: 1698 | D120: 1881 | F120: 1221 | H120: 64.9%
B121: 一般行政管理事务 | F121: 0
B122: 机关服务 | F122: 0
B123: 大案要案查处 | C123: 543 | D123: 443 | F123: 852 | H123: 192.5%
B124: 派驻派出机构 | C124: 340 | D124: 340 | F124: 170 | H124: 50.0%
B125: 中央巡视 | F125: 0
B126: 事业运行 | C126: 0 | D126: 0 | F126: 0 | H126: 0.0%
B127: 其他纪检监察事务支出 | C127: 1945 | D127: 1917 | F127: 1548 | H127: 80.8%
B128: 商贸事务 | C128: =SUBTOTAL(9,C129:C138) -> 121 | D128: =SUBTOTAL(9,D129:D138) -> 291 | F128: 1292 | H128: 444.6%
B129: 行政运行 | C129: 8 | D129: 8 | F129: 4 | H129: 52.4%
B130: 一般行政管理事务 | F130: 0
B131: 机关服务 | F131: 0
B132: 对外贸易管理 | F132: 0
B133: 国际经济合作 | F133: 0
B134: 外资管理 | F134: 0
B135: 国内贸易管理 | F135: 0
B136: 招商引资 | C136: 114 | D136: 255 | F136: 414 | H136: =F136/D136 -> 162.4%
B137: 事业运行 | F137: 0
B138: 其他商贸事务支出 | D138: 28 | F138: 874 | H138: 3110.3%
B139: 知识产权事务 | C139: 0 | D139: =SUBTOTAL(9,D140:D150) -> 20 | F139: 20 | H139: 100.0%
B140: 行政运行 | F140: 0
B141: 一般行政管理事务 | F141: 0
B142: 机关服务 | F142: 0
B143: 专利审批 | F143: 0
B144: 国家知识产权战略 | F144: 0
B145: 专利试点和产业化推进 | F145: 0
B146: 专利执法 | F146: 0
B147: 国际组织专项活动 | F147: 0
B148: 知识产权宏观管理 | F148: 0
B149: 事业运行 | F149: 0
B150: 其他知识产权事务支出 | D150: 20 | F150: 20 | H150: 100.0%
B151: 工商行政管理事务 | C151: =SUBTOTAL(9,C152:C160) -> 1838 | D151: =SUBTOTAL(9,D152:D160) -> 1968 | F151: 1725 | H151: 87.7%
B152: 行政运行 | C152: 1486 | D152: 1604 | F152: 1333 | H152: 83.1%
B153: 一般行政管理事务 | F153: 0
B154: 机关服务 | F154: 0
B155: 工商行政管理专项 | D155: 13 | F155: 23 | H155: 176.9%
B156: 执法办案专项 | F156: 0
B157: 消费者权益保护 | F157: 8
B158: 信息化建设 | F158: 0
B159: 事业运行 | F159: 0
B160: 其他工商行政管理事务支出 | C160: 351 | D160: 351 | F160: 361 | H160: 102.7%
B161: 质量技术监督与检验检疫事务 | C161: =SUBTOTAL(9,C162:C173) -> 1588 | D161: =SUBTOTAL(9,D162:D173) -> 1722 | F161: 1606 | H161: 93.3%
B162: 行政运行 | C162: 974 | D162: 997 | F162: 917 | H162: 91.9%
B163: 一般行政管理事务 | F163: 3
B164: 机关服务 | F164: 0
B165: 出入境检验检疫行政执法和业务管理 | C165: 98 | D165: 98 | F165: 0 | H165: 0.0%
B166: 出入境检验检疫技术支持 | F166: 0
B167: 质量技术监督行政执法及业务管理 | C167: 400 | D167: 510 | F167: 416 | H167: 81.6%
B168: 质量技术监督技术支持 | C168: 40 | D168: 40 | F168: 0 | H168: 0.0%
B169: 认证认可监督管理 | C169: 7 | D169: 7 | F169: 7 | H169: 94.0%
B170: 标准化管理 | C170: 44 | D170: 44 | F170: 41 | H170: 93.5%
B171: 信息化建设 | F171: 0
B172: 事业运行 | C172: 25 | D172: 25 | F172: 63 | H172: 254.1%
B173: 其他质量技术监督与检验检疫事务支出 | F173: 159
B174: 民族事务 | C174: =SUBTOTAL(9,C175:C180) -> 73 | D174: =SUBTOTAL(9,D175:D180) -> 124 | F174: 94 | H174: 75.7%
B175: 行政运行 | C175: 73 | D175: 91 | F175: 61 | H175: 66.9%
B176: 一般行政管理事务 | F176: 0
B177: 机关服务 | F177: 0
B178: 民族工作专项 | F178: 0
B179: 事业运行 | F179: 0
B180: 其他民族事务支出 | D180: 33 | F180: 33 | H180: 100.0%
B181: 宗教事务 | C181: =SUBTOTAL(9,C182:C187) -> 15 | D181: =SUBTOTAL(9,D182:D187) -> 35 | F181: 66 | H181: 188.6%
B182: 行政运行 | C182: 15 | D182: 15 | F182: 14 | H182: 93.3%
B183: 一般行政管理事务 | F183: 0
B184: 机关服务 | F184: 0
B185: 宗教工作专项 | F185: 32
B186: 事业运行 | F186: 0
B187: 其他宗教事务支出 | D187: 20 | F187: 20 | H187: 100.0%
B188: 港澳台侨事务 | C188: =SUBTOTAL(9,C189:C196) -> 61 | D188: =SUBTOTAL(9,D189:D196) -> 86 | F188: 92 | H188: 106.7%
B189: 行政运行 | C189: 40 | D189: 43 | F189: 36 | H189: 83.0%
B190: 一般行政管理事务 | F190: 0
B191: 机关服务 | F191: 0
B192: 港澳事务 | F192: 0
B193: 台湾事务 | C193: 21 | D193: 41 | F193: 51 | H193: 124.9%
B194: 华侨事务 | D194: 2 | F194: 5 | H194: 250.0%
B195: 事业运行 | F195: 0
B196: 其他港澳台侨事务支出 | F196: 0
B197: 档案事务 | C197: =SUBTOTAL(9,C198:C202) -> 488 | D197: =SUBTOTAL(9,D198:D202) -> 511 | F197: 539 | H197: =F197/D197 -> 105.4%
B198: 行政运行 | C198: 181 | D198: 204 | F198: 263 | H198: 128.8%
B199: 一般行政管理事务 | F199: 32
B200: 机关服务 | C200: 3 | D200: 3 | F200: 10 | H200: 327.9%
... 1973 more rows

Sheet 2017年本级专项转移支付情况表
A1: 2017年本级专项转移支付情况表 | K1: 2017年本级专项转移支付情况表
A2: 表五 单位：万元 | K2: 单位：万元
A3: 地 区 | B3: 合 计 | C3: 一般公共服务支出 | D3: 公共安全支出 | E3: 教育支出 | F3: 科学技术支出 | G3: 文化体育与传媒支出 | H3: 社会保障和就业支出 | I3: 医疗卫生与计划生育支出 | J3: 节能环保支出 | K3: 城乡社区支出 | L3: 农林水支出 | M3: 交通运输支出 | N3: 资源勘探信息等支出 | O3: 商业服务业等支出 | P3: 国土海洋气象等支出 | Q3: 住房保障支出 | R3: 粮油物资储备支出 | S3: 其他支出
A4: 随州市本级 | B4: =SUM(C4:S4) -> 55028 | C4: 1500 | D4: 212 | E4: 4605 | F4: 242 | G4: 475 | H4: 5373 | I4: 4879 | J4: 1565 | L4: 8714 | M4: 3319 | N4: 541 | O4: 756 | P4: 387 | Q4: 22021 | R4: 250 | S4: 189
A21: 合 计

Sheet 2017年随州市政府一般债务限额余额表
A1: 2017年随州市政府一般债务限额余额表
A2: 表六 | C2: 单位：万元
A3: 地区 | B3: 限额 | C3: 余额
A4: 随州市 | B4: 781826 | C4: 665085

Sheet 2017年随州市（州）政府性基金收入情况表
A1: 2017年随州市（州）政府性基金收入情况表
A2: 表七 | D2: 单位：万元
A3: 项 目 | B3: 预算数 | C3: 决算数 | D3: 占预算数%
A4: 一、农网还贷资金收入
A5: 二、海南省高等级公路车辆通行附加费收入
A6: 三、港口建设费收入
A7: 四、新型墙体材料专项基金收入 | B7: 985 | C7: 1447 | D7: 146.9%
A8: 五、国家电影事业发展专项资金收入
A9: 六、城市公用事业附加收入
A10: 七、国有土地收益基金收入
A11: 八、农业土地开发资金收入 | B11: 122 | C11: 1120 | D11: 918.0%
A12: 九、国有土地使用权出让收入 | B12: 159401 | C12: 110201 | D12: 69.1%
A13: 十、大中型水库库区基金收入
A14: 十一、彩票公益金收入 | B14: 1248 | D14: 0.0%
A15: 十二、城市基础设施配套费收入 | B15: 6046 | C15: 15769 | D15: 260.8%
A16: 十三、小型水库移民扶助基金收入
A17: 十四、国家重大水利工程建设基金收入
A18: 十五、车辆通行费
A19: 十六、污水处理费收入 | B19: 2900 | C19: 3892 | D19: 134.2%
A20: 十七、其他政府性基金收入 | C20: 392
A21: 十八、彩票发行机构和彩票销售机构的业务费用
A26: 收 入 合 计 | B26: =SUM(B4:B21) -> 170702 | C26: =SUM(C4:C21) -> 132821 | D26: 77.8%

Sheet 2017年本级政府性基金收入情况表
A1: 2017年本级政府性基金收入情况表
A2: 表八 | G2: 单位：万元
A3: 项 目 | B3: 预算数 | C3: 预计完成数 | D3: 调整预算数 | E3: 决算数 | F3: 占预计完成% | G3: 占调整预算数%
A4: 一、农网还贷资金收入
A5: 二、海南省高等级公路车辆通行附加费收入
A6: 三、港口建设费收入
A7: 四、新型墙体材料专项基金收入 | B7: 500 | D7: 500 | E7: 604 | G7: 120.8%
A8: 五、国家电影事业发展专项资金收入
A9: 六、城市公用事业附加收入
A10: 七、国有土地收益基金收入
A11: 八、农业土地开发资金收入 | E11: 57
A12: 九、国有土地使用权出让收入 | B12: 82095 | D12: 62095 | E12: 44301 | G12: 71.3%
A13: 十、大中型水库库区基金收入
A14: 十一、彩票公益金收入 | B14: 1248
A15: 十二、城市基础设施配套费收入 | B15: 1500 | D15: 1860 | E15: 7357 | G15: 395.5%
A16: 十三、小型水库移民扶助基金收入
A17: 十四、国家重大水利工程建设基金收入
A18: 十五、车辆通行费
A19: 十六、污水处理费收入 | B19: 1900 | D19: 1900 | E19: 2793 | G19: 147.0%
A20: 十七、其他政府性基金收入
A21: 十八、彩票发行机构和彩票销售机构的业务费用
A32: 收入合计 | B32: =SUM(B4:B21) -> 87243 | C32: =SUM(C4:C21) -> 0 | D32: 66355 | E32: 55112 | G32: 83.1%
A34: 转移性收入 | B34: 3137 | D34: =SUM(D35:D36) -> 18143 | E34: 11666 | G34: 64.3%
A35: 政府性基金转移收入 | D35: 2370 | E35: 11666 | G35: 492.2%
A36: 上年结转收入 | B36: 3137 | D36: 15773 | E36: 15773 | G36: 100.0%
A37: 调入资金
A38: 债务收入 | D38: 95274 | E38: 106557 | G38: 111.8%
A39: …
A40: 收 入 总 计 | B40: =B32+B34+B38 -> 90380 | C40: =C32+C34+C38 -> 0 | D40: 179772 | E40: =E32+E34+E36+E37+E38 -> 189108 | G40: 105.2%

Sheet 2017年随州市（州）政府性基金支出情况表
A1: 2017年随州市（州）政府性基金支出情况表
A2: 表九 | D2: 单位：万元
A3: 项 目 | B3: 预算数 | C3: 决算数 | D3: 占预算数% | E3: 国库11月底数据 | F3: 12月份数据
A4: 一、文化体育与传媒支出 | C4: 251 | E4: 9,240.00 | F4: 17,653 | G4: 科学技术支出 | H4: 0.00
A5: 二、社会保障和就业支出 | C5: 8207 | E5: 138,364.00 | F5: 185,012 | G5: 文化体育与传媒支出 | H5: 9,240.00
A6: 三、节能环保支出 | C6: 0 | F6: 150 | G6: 社会保障和就业支出 | H6: 138,364.00
A7: 四、城乡社区支出 | B7: 149799 | C7: 324216 | D7: 216.4% | E7: 18,609,575.00 | F7: 17,757,749 | G7: 节能环保支出 | H7: 0.00
A8: 五、农林水支出 | C8: 1909 | E8: 88,946.00 | F8: 228,975 | G8: 城乡社区支出 | H8: 18,609,575.00
A9: 六、交通运输支出 | C9: 17498 | E9: 1,223,648.00 | F9: 1,226,115 | G9: 农林水支出 | H9: 88,946.00
A10: 七、资源勘探信息等支出 | B10: 230 | C10: 598 | D10: 260.0% | E10: 17,664.00 | F10: 30,216 | G10: 交通运输支出 | H10: 1,223,648.00
A11: 八、商业服务业等支出 | C11: 110 | E11: 4,317.00 | F11: 1,857 | G11: 资源勘探信息等支出 | H11: 17,664.00
A12: 九、其他支出 | B12: 1680 | C12: 4555 | D12: 271.1% | E12: 213,085.00 | F12: 594,707 | G12: 商业服务业等支出 | H12: 4,317.00
A13: 十、债务付息支出 | C13: 5578 | E13: 315,842.00 | G13: 金融支出 | H13: 0.00
A14: 十一、债务发行费用支出 | C14: 230 | E14: 189.00 | G14: 其他支出 | H14: 213,085.00
G15: 债务付息支出 | H15: 315,842.00
A16: 支 出 合 计 | B16: =SUM(B4:B12) -> 151709 | C16: =SUM(C4:C15) -> 363152 | D16: 239.4% | E16: =SUM(E4:E14) -> 20620870 | F16: =SUM(F4:F12) -> 20042434 | G16: 债务发行费用支出 | H16: 189.00

Sheet 2017年本级政府性基金支出情况表
B1: 2017年本级政府性基金支出情况表
B2: 表十 | H2: 单位：万元
B3: 项 目 | C3: 预算数 | D3: 预计完成数 | E3: 调整预算数 | F3: 决算数 | G3: 占预计完成% | H3: 占调整预算数%
B4: 一、文化体育与传媒支出 | D4: =+D5 -> 0 | G4: =F4/D4 -> 
B5: ... | D5: =SUM(D6:D8) -> 0 | G5: =F5/D5 -> 
A6: 空 | B6: 资助国产影片放映 | H6: =IF(#REF!=0,0,D6/#REF!) -> 
A7: 空 | B7: 资助城市影院 | H7: =IF(#REF!=0,0,D7/#REF!) -> 
A8: 空 | B8: 资助少数民族电影译制 | H8: =IF(#REF!=0,0,D8/#REF!) -> 
B9: 二、社会保障和就业支出 | E9: 5 | F9: 42 | G9: =F9/D9 ->  | H9: =F9/E9 -> 840.0%
B10: 大中型水库移民后期扶持基金支出 | E10: 5 | F10: 42 | H10: =F10/E10 -> 840.0%
B11: 移民补助 | F11: 0
B12: 基础设施建设和经济发展 | F12: 18
B13: 其他大中型水库移民后期扶持基金支出 | D13: =SUM(D14:D15) -> 0 | E13: 5 | F13: 24 | G13: =F13/D13 ->  | H13: 480.0%
A14: 空 | B14: 移民补助 | C14: 100 | H14: =IF(#REF!=0,0,D14/#REF!) -> 
A15: 空 | B15: 基础设施建设和经济发展 | H15: =IF(#REF!=0,0,D15/#REF!) -> 
A16: 空 | B16: 移民补助 | H16: =IF(#REF!=0,0,D16/#REF!) -> 
A17: 空 | B17: 基础设施建设和经济发展 | H17: =IF(#REF!=0,0,D17/#REF!) -> 
A18: 空 | B18: 其他小型水库移民扶助基金支出 | H18: =IF(#REF!=0,0,D18/#REF!) -> 
B19: 三、节能环保支出 | D19: =+D72+D74 -> 0
B20: 四、城乡社区支出 | C20: =C21+C37+C46+C53+C57+C66 -> 82350 | D20: =D21+D37+D46+D53+D57+D66 -> 0 | E20: 117143 | F20: 117032 | H20: =F20/E20 -> 99.9%
B21: 国有土地使用权出让相关支出 | C21: =C22 -> 76741 | D21: =D22 -> 0 | E21: 111174 | F21: 111592 | H21: 100.4%
B22: 国有土地使用权出让收入及对应专项债务收入安排的支出 | C22: =SUBTOTAL(9,C23:C34) -> 76741 | D22: =SUBTOTAL(9,D23:D34) -> 0 | E22: 111174 | F22: 108950 | H22: 98.0%
B23: 征地和拆迁补偿支出 | C23: 25832 | D23: 0 | E23: 25006 | F23: 34166 | H23: 136.6%
B24: 土地开发支出 | C24: 4131 | D24: 0 | E24: 4131 | F24: 0 | H24: 0.0%
B25: 城市建设支出 | C25: 33686 | D25: 0 | E25: 21686 | F25: 17979 | H25: 82.9%
B26: 农村基础设施建设支出 | C26: 1000 | D26: 0 | E26: 1000 | F26: 0 | H26: 0.0%
B27: 补助被征地农民支出 | F27: 0
B28: 土地出让业务支出 | F28: 960
B29: 廉租住房支出 | F29: 1412
B30: 支付破产或改制企业职工安置费 | F30: 0
B31: 棚户区改造支出 | F31: 0
B32: 公共租赁住房支出 | C32: 2052 | D32: 0 | E32: 2052 | F32: 0 | H32: 0.0%
B33: 保障性住房租金补贴 | F33: 0
B34: 其他国有土地使用权出让收入安排的支出 | C34: 10040 | D34: 0 | E34: 57299 | F34: 54433 | H34: 95.0%
B35: 国有土地使用权出让债务付息支出 | F35: 2580
B36: 国有土地使用权出让债务发行费用支出 | F36: 62
B37: 城市公用事业附加相关支出 | F37: 0
B38: 城市公用事业附加及对应专项债务收入安排的支出 | F38: 0
B39: 城市公共设施
B40: 城市环境卫生
B41: 公有房屋
B42: 城市防洪
B43: 其他城市公用事业附加安排的支出
B44: 城市公用事业附加债务付息支出 | F44: 0
B45: 城市公用事业附加债务发行费用支出 | F45: 0
B46: 国有土地收益基金相关支出 | F46: 0
B47: 国有土地收益基金及对应专项债务收入安排的支出 | F47: 0
B48: 征地和拆迁补偿支出 | F48: 0
B49: 土地开发支出 | F49: 0
B50: 其他国有土地收益基金支出 | F50: 0
B51: 国有土地收益基金债务付息支出 | F51: 0
B52: 国有土地收益基金债务发行费用支出 | F52: 0
B53: 农业土地开发资金相关支出 | F53: 0
B54: 农业土地开发资金及对应专项债务收入安排的支出 | F54: 0
B55: 农业土地开发资金债务付息支出 | F55: 0
B56: 农业土地开发资金债务发行费用支出 | F56: 0
B57: 城市基础设施配套费相关支出 | C57: =C58 -> 3056 | D57: =D58 -> 0 | E57: 3416 | F57: 3556 | H57: 104.1%
B58: 城市基础设施配套费及对应专项债务收入安排的支出 | C58: =SUBTOTAL(9,C59:C63) -> 3056 | D58: =SUBTOTAL(9,D59:D63) -> 0 | E58: 3416 | F58: 3556 | H58: 104.1%
B59: 城市公共设施 | F59: 335
B60: 城市环境卫生 | C60: 3056 | D60: 0 | E60: 3056 | F60: 890 | H60: 29.1%
B61: 公有房屋 | F61: 0
B62: 城市防洪 | F62: 0
B63: 其他城市基础设施配套费安排的支出 | C63: 0 | D63: 0 | E63: 360 | F63: 2331 | H63: 647.5%
B64: 城市基础设施配套费债务付息支出 | F64: 0
B65: 城市基础设施配套费债务发行费用支出 | F65: 0
B66: 污水处理费相关支出 | C66: 2553 | D66: 0 | E66: 2553 | F66: 1884 | H66: 73.8%
B67: 污水处理费及对应专项债务收入安排的支出 | C67: 2553 | D67: 0 | E67: 2553 | F67: 1884 | H67: 73.8%
B68: 污水处理设施建设和运营 | C68: 2553 | D68: 0 | E68: 2553 | F68: 277 | H68: 10.8%
B69: 代征手续费 | F69: 0
B70: 其他污水处理费安排的支出 | F70: 1607
B71: 污水处理费债务付息支出 | F71: 0
B72: 污水处理费债务发行费用支出 | D72: =+D73 -> 0 | F72: 0
A73: 空
B74: 五、农林水支出 | D74: =SUM(D79:D82) -> 0 | F74: 12
B75: 大中型水库库区基金相关支出 | F75: 12
B76: 大中型水库库区基金及对应专项债务收入安排的支出 | F76: 12
B77: 基础设施建设和经济发展 | F77: 12
B78: 解决移民遗留问题
B79: 库区防护工程维护
B80: 其他大中型水库库区基金支出
B81: 大中型水库库区基金债务付息支出
B82: 大中型水库库区基金债务发行费用支出
B83: 六、交通运输支出 | D83: 0 | E83: 941 | F83: 500 | H83: =F83/E83 -> 53.1%
B84: 车辆通行费相关支出 | D84: 0 | E84: 941 | F84: 500 | H84: 53.1%
B85: 车辆通行费及对应专项债务收入安排的支出 | D85: 0 | E85: 941 | F85: 500 | H85: 53.1%
B86: 公路还贷 | F86: 0
B87: 政府还贷公路养护 | F87: 0
B88: 政府还贷公路管理 | F88: 0
B89: 其他车辆通行费安排的支出 | D89: 0 | E89: 941 | F89: 500 | H89: 53.1%
B90: 车辆通行费债务付息支出 | F90: 0
B91: 车辆通行费债务发行费用支出 | F91: 0
B92: 七、资源勘探信息等支出 | C92: 921 | D92: 0 | E92: 921 | F92: 150 | H92: 16.3%
B93: 新型墙体材料专项基金相关支出 | C93: 921 | D93: 0 | E93: 921 | F93: 150 | H93: 16.3%
B94: 新型墙体材料专项基金及对应专项债务收入安排的支出 | C94: =SUBTOTAL(9,C95:C99) -> 921 | D94: =SUBTOTAL(9,D95:D99) -> 0 | E94: 921 | F94: 150 | H94: 16.3%
B95: 技改贴息和补助 | C95: 230 | D95: 0 | E95: 230 | F95: 0 | H95: 0.0%
B96: 技术研发和推广 | C96: 110 | D96: 0 | E96: 110 | F96: 0 | H96: 0.0%
B97: 示范项目补贴 | C97: 300 | D97: 0 | E97: 300 | F97: 100 | H97: 33.3%
B98: 宣传和培训 | C98: 90 | D98: 0 | E98: 90 | F98: 0 | H98: 0.0%
B99: 其他新型墙体材料专项基金支出 | C99: 191 | D99: 0 | E99: 191 | F99: 50 | H99: 26.2%
B100: 新型墙体材料专项基金债务付息支出 | F100: 0
B101: 新型墙体材料专项基金债务发行费用支出 | F101: 0
A102: 空 | B102: 八、商业服务业等支出 | D102: 0 | E102: 20 | F102: 20 | H102: 100.0%
B103: 旅游发展基金支出 | D103: 0 | E103: 20 | F103: =SUM(F104:F108) -> 20 | H103: 100.0%
B104: 宣传促销 | F104: 0
B105: 行业规划 | F105: 0
B106: 旅游事业补助 | F106: 0
B107: 地方旅游开发项目补助 | D107: 0 | E107: 20 | F107: 20 | H107: 100.0%
B108: 其他旅游发展基金支出 | F108: 0
B109: 九、其他支出 | C109: 1680 | D109: 0 | E109: 1680 | F109: 1,910 | H109: 113.7%
B110: 彩票公益金相关支出 | C110: 1680 | D110: 0 | E110: 1680 | F110: 1,910 | H110: 113.7%
B111: 彩票公益金及对应专项债务收入安排的支出 | C111: =SUBTOTAL(9,C112:C122) -> 1680 | D111: =SUBTOTAL(9,D112:D122) -> 0 | E111: 1680 | F111: 1,910 | H111: 113.7%
B112: 用于补充全国社会保障基金的彩票公益金支出 | F112: 0
B113: 用于社会福利的彩票公益金支出 | C113: 1340 | D113: 0 | E113: 1315 | F113: 1,501 | H113: 114.1%
B114: 用于体育事业的彩票公益金支出 | C114: 340 | D114: 0 | E114: 340 | F114: 398 | H114: 117.1%
B115: 用于教育事业的彩票公益金支出 | F115: 0
B116: 用于红十字事业的彩票公益金支出 | D116: 0 | E116: 7 | F116: 7 | H116: 100.0%
B117: 用于残疾人事业的彩票公益金支出 | D117: 0 | E117: 2 | F117: -12 | H117: -600.0%
B118: 用于文化事业的彩票公益金支出 | F118: 0
B119: 用于扶贫的彩票公益金支出 | F119: 0
B120: 用于法律援助的彩票公益金支出 | F120: 0
B121: 用于城乡医疗救助的彩票公益金支出 | D121: 0 | E121: 16 | F121: 16 | H121: 100.0%
B122: 用于其他社会公益事业的彩票公益金支出 | F122: 0
B123: 彩票公益金债务付息支出 | F123: 0
B124: 彩票公益金债务发行费用支出 | F124: 0
A125: 空 | B125: 城市公共设施 | H125: =IF(#REF!=0,0,D125/#REF!) -> 
A126: 空 | B126: 城市环境卫生 | H126: =IF(#REF!=0,0,D126/#REF!) -> 
A127: 空 | B127: 公有房屋 | H127: =IF(#REF!=0,0,D127/#REF!) -> 
A128: 空 | B128: 城市防洪 | H128: =IF(#REF!=0,0,D128/#REF!) -> 
A129: 空 | B129: 其他城市公用事业附加安排的支出 | H129: =IF(#REF!=0,0,D129/#REF!) -> 
A130: 空 | B130: 征地和拆迁补偿支出 | H130: =IF(#REF!=0,0,D130/#REF!) -> 
A131: 空 | B131: 土地开发支出 | H131: =IF(#REF!=0,0,D131/#REF!) -> 
A132: 空 | B132: 其他国有土地收益基金支出 | H132: =IF(#REF!=0,0,D132/#REF!) -> 
A133: 空 | B133: 耕地开发专项支出 | H133: =IF(#REF!=0,0,D133/#REF!) -> 
A134: 空 | B134: 基本农田建设和保护支出 | H134: =IF(#REF!=0,0,D134/#REF!) -> 
A135: 空 | B135: 土地整理支出 | H135: =IF(#REF!=0,0,D135/#REF!) -> 
A136: 空 | B136: 用于地震灾后恢复重建的支出 | H136: =IF(#REF!=0,0,D136/#REF!) -> 
A137: 空 | B137: 其他新增建设用地有偿使用费安排的支出 | H137: =IF(#REF!=0,0,D137/#REF!) -> 
A138: 空 | B138: 城市公共设施 | H138: =IF(#REF!=0,0,D138/#REF!) -> 
A139: 空 | B139: 城市环境卫生 | H139: =IF(#REF!=0,0,D139/#REF!) -> 
A140: 空 | B140: 公有房屋 | H140: =IF(#REF!=0,0,D140/#REF!) -> 
A141: 空 | B141: 城市防洪 | H141: =IF(#REF!=0,0,D141/#REF!) -> 
A142: 空 | B142: 其他城市基础设施配套费安排的支出 | H142: =IF(#REF!=0,0,D142/#REF!) -> 
A143: 空 | B143: 污水处理设施建设和运营 | H143: =IF(#REF!=0,0,D143/#REF!) -> 
A144: 空 | B144: 代征手续费 | H144: =IF(#REF!=0,0,D144/#REF!) -> 
A145: 空 | B145: 其他污水处理费安排的支出 | H145: =IF(#REF!=0,0,D145/#REF!) -> 
A146: 空 | B146: 开发新菜地工程 | H146: =IF(#REF!=0,0,D146/#REF!) -> 
A147: 空 | B147: 改造老菜地工程 | H147: =IF(#REF!=0,0,D147/#REF!) -> 
A148: 空 | B148: 设备购置 | H148: =IF(#REF!=0,0,D148/#REF!) -> 
A149: 空 | B149: 技术培训与推广 | H149: =IF(#REF!=0,0,D149/#REF!) -> 
A150: 空 | B150: 其他新菜地开发建设基金支出 | H150: =IF(#REF!=0,0,D150/#REF!) -> 
A151: 空 | B151: 解决移民遗留问题 | H151: =IF(#REF!=0,0,D151/#REF!) -> 
A152: 空 | B152: 库区防护工程维护 | H152: =IF(#REF!=0,0,D152/#REF!) -> 
A153: 空 | B153: 其他大中型水库库区基金支出 | H153: =IF(#REF!=0,0,D153/#REF!) -> 
A154: 空 | B154: 基础设施建设和经济发展 | H154: =IF(#REF!=0,0,D154/#REF!) -> 
A155: 空 | B155: 解决移民遗留问题 | H155: =IF(#REF!=0,0,D155/#REF!) -> 
A156: 空 | B156: 库区维护和管理 | H156: =IF(#REF!=0,0,D156/#REF!) -> 
A157: 空 | B157: 其他三峡水库库区基金支出 | H157: =IF(#REF!=0,0,D157/#REF!) -> 
A158: 空 | B158: 南水北调工程建设 | H158: =IF(#REF!=0,0,D158/#REF!) -> 
A159: 空 | B159: 偿还南水北调工程贷款本息 | H159: =IF(#REF!=0,0,D159/#REF!) -> 
A160: 空 | B160: 南水北调工程建设 | H160: =IF(#REF!=0,0,D160/#REF!) -> 
A161: 空 | B161: 地方重大水利工程建设 | H161: =IF(#REF!=0,0,D161/#REF!) -> 
A162: 空 | B162: 其他重大水利工程建设基金支出 | H162: =IF(#REF!=0,0,D162/#REF!) -> 
A163: 空 | B163: 港口设施 | H163: =IF(#REF!=0,0,D163/#REF!) -> 
A164: 空 | B164: 航运保障系统建设 | H164: =IF(#REF!=0,0,D164/#REF!) -> 
A165: 空 | B165: 其他港口建设费安排的支出 | H165: =IF(#REF!=0,0,D165/#REF!) -> 
A166: 空 | B166: 铁路建设投资 | H166: =IF(#REF!=0,0,D166/#REF!) -> 
A167: 空 | B167: 购置铁路机车车辆 | H167: =IF(#REF!=0,0,D167/#REF!) -> 
A168: 空 | B168: 铁路还贷 | H168: =IF(#REF!=0,0,D168/#REF!) -> 
A169: 空 | B169: 建设项目铺底资金 | H169: =IF(#REF!=0,0,D169/#REF!) -> 
A170: 空 | B170: 勘测设计 | H170: =IF(#REF!=0,0,D170/#REF!) -> 
A171: 空 | B171: 注册资本金 | H171: =IF(#REF!=0,0,D171/#REF!) -> 
A172: 空 | B172: 周转资金 | H172: =IF(#REF!=0,0,D172/#REF!) -> 
A173: 空 | B173: 其他铁路建设基金支出 | H173: =IF(#REF!=0,0,D173/#REF!) -> 
A174: 空 | B174: 应急处置费用 | H174: =IF(#REF!=0,0,D174/#REF!) -> 
A175: 空 | B175: 控制清除污染 | H175: =IF(#REF!=0,0,D175/#REF!) -> 
A176: 空 | B176: 损失补偿 | H176: =IF(#REF!=0,0,D176/#REF!) -> 
A177: 空 | B177: 生态恢复 | H177: =IF(#REF!=0,0,D177/#REF!) -> 
A178: 空 | B178: 监视监测 | H178: =IF(#REF!=0,0,D178/#REF!) -> 
A179: 空 | B179: 其他船舶油污损害赔偿基金支出 | H179: =IF(#REF!=0,0,D179/#REF!) -> 
A180: 空 | B180: 空管系统建设 | F180: 0 | H180: =IF(#REF!=0,0,D180/#REF!) -> 
A181: 空 | B181: 民航安全 | F181: 0 | H181: =IF(#REF!=0,0,D181/#REF!) -> 
A182: 空 | B182: 民航节能减排 | H182: =IF(#REF!=0,0,D182/#REF!) -> 
A183: 空 | B183: 通用航空发展 | H183: =IF(#REF!=0,0,D183/#REF!) -> 
A184: 空 | B184: 征管经费 | H184: =IF(#REF!=0,0,D184/#REF!) -> 
A185: 空 | B185: 建设专用设施 | H185: =IF(#REF!=0,0,D185/#REF!) -> 
A186: 空 | B186: 专用设备购置和维修 | H186: =IF(#REF!=0,0,D186/#REF!) -> 
A187: 空 | B187: 贷款贴息 | H187: =IF(#REF!=0,0,D187/#REF!) -> 
A188: 空 | B188: 技术研发与推广 | H188: =IF(#REF!=0,0,D188/#REF!) -> 
A189: 空 | B189: 宣传 | H189: =IF(#REF!=0,0,D189/#REF!) -> 
A190: 空 | B190: 其他散装水泥专项资金支出 | H190: =IF(#REF!=0,0,D190/#REF!) -> 
A191: 空 | B191: 技改贴息和补助 | H191: =IF(#REF!=0,0,D191/#REF!) -> 
A192: 空 | B192: 技术研发和推广 | H192: =IF(#REF!=0,0,D192/#REF!) -> 
A193: 空 | B193: 示范项目补贴 | H193: =IF(#REF!=0,0,D193/#REF!) -> 
B194: 支 出 合 计 | C194: =C9+C19+C20+C74+C83+C92+C102+C109 -> 84951 | D194: =D9+D19+D20+D74+D83+D92+D102+D109 -> 0 | E194: 120710 | F194: =F4+F9+F19+F20+F74+F83+F92+F102+F109 -> 119666 | G194: =F194/D194 ->  | H194: =F194/E194 -> 99.1%
B196: 转移性支出 | C196: 5429 | D196: =SUBTOTAL(9,D197,D200,D201) -> 5693070 | E196: 5429 | F196: 8580 | G196: =F196/D196 -> 0.2% | H196: 158.0%
B197: ... | D197: =+D198 -> 1213508 | G197: 0.0%
B198: 债券转贷支出 | D198: 1213508 | E198: 40841 | F198: 42919 | G198: 3.5% | H198: 105.1%
B199: ...
D200: =249562 -> 249562 | G200: =F200/D200 -> 0.0%
D201: 4230000 | G201: =F201/D201 -> 0.0%
... 5 more rows

Sheet 2017年本级政府性基金专项转移支付情况表
A1: 2017年本级政府性基金专项转移支付情况表
A2: 表十一 单位：万元
A3: 地 区 | B3: 合 计 | C3: 文化体育与传媒支出 | D3: 社会保障和就业支出 | E3: 农林水支出 | F3: 交通运输支出 | G3: 商业服务业等支出 | H3: 其他支出
A4: 随州市本级 | B4: =SUM(C4:H4) -> 3086 | D4: 109 | E4: 5 | F4: 941 | G4: 20 | H4: 2011

Sheet 2017年随州市政府专项债务限额余额表
A2: 2017年随州市政府专项债务限额余额表
A3: 表十二 | C3: 单位：万元
A4: 地 区 | B4: 限额 | C4: 余额
A5: 随州市 | B5: 459078 | C5: 432702

Sheet 2017年随州市（州）国有资本经营收入情况表
A1: 2017年随州市（州）国有资本经营收入情况表
A2: 表十三 | D2: 单位：万元
A3: 项 目 | B3: 预算数 | C3: 决算数 | D3: 占预算数%
A4: 一、利润收入 | B4: 6278 | C4: 6522 | D4: 103.9%
A5: 烟草企业利润收入 | C5: 0
A6: 石油石化企业利润收入 | C6: 0
A7: 电力企业利润收入 | C7: 0
A8: 电信企业利润收入 | C8: 0
A9: 煤炭企业利润收入 | C9: 0
A10: 有色冶金采掘企业利润收入 | C10: 0
A11: 钢铁企业利润收入 | C11: 0
A12: 化工企业利润收入 | C12: 0
A13: 运输企业利润收入 | C13: 0
A14: 电子企业利润收入 | C14: 0
A15: 机械企业利润收入 | C15: 0
A16: 投资服务企业利润收入 | C16: 0
A17: 纺织轻工企业利润收入 | C17: 0
A18: 贸易企业利润收入 | C18: 0
A19: 建筑施工企业利润收入 | C19: 0
A20: 房地产企业利润收入 | C20: 0
A21: 建材企业利润收入 | C21: 0
A22: 境外企业利润收入 | C22: 0
A23: 对外合作企业利润收入 | C23: 0
A24: 医药企业利润收入 | C24: 0
A25: 农林牧渔企业利润收入 | C25: 0
A26: 邮政企业利润收入 | C26: 0
A27: 军工企业利润收入 | C27: 0
A28: 转制科研院所利润收入 | C28: 0
A29: 地质勘查企业利润收入 | C29: 0
A30: 卫生体育福利企业利润收入 | C30: 0
A31: 教育文化广播企业利润收入 | C31: 0
A32: 科学研究企业利润收入 | C32: 0
A33: 机关社团所属企业利润收入 | C33: 0
A34: 金融企业利润收入 | C34: 0
A35: 其他国有资本经营预算企业利润收入 | B35: 6278 | C35: 6522 | D35: 103.9%
A36: 二、股利、股息收入 | C36: 0
A37: 国有控股公司股利、股息收入 | C37: 0
A38: 国有参股公司股利、股息收入 | C38: 0
A39: 金融企业公司股利、股息收入 | C39: 0
A40: 其他国有资本经营预算企业股利、股息收入 | C40: 0
A41: 三、产权转让收入 | C41: 76
A42: 国有股减持收入 | C42: 0
A43: 国有股权、股份转让收入 | C43: 76
A44: 国有独资企业产权转让收入 | C44: 0
A45: 金融企业产权转让收入 | C45: 0
A46: 其他国有资本经营预算企业产权转让收入 | C46: 0
A47: 四、清算收入 | C47: 0
A48: 国有股权、股份清算收入 | C48: 0
A49: 国有独资企业清算收入 | C49: 0
A50: 其他国有资本经营预算企业清算收入 | C50: 0
A51: 五、其他国有资本经营预算收入 | B51: 120 | C51: 0
A54: 国 有 资 本 经 营 收 入 | B54: 6398 | C54: =C4+C36+C41+C47+C51 -> 6598 | D54: 103.1%
A55: 上 年 结 转 收 入
A56: 收 入 总 计 | B56: =B51+B4 -> 6398 | C56: 6598 | D56: 103.1%

Sheet 2017年本级国有资本经营收入情况表
A1: 2017年本级国有资本经营收入情况表
A2: 表十四 | G2: 单位：万元
A3: 项 目 | B3: 预算数 | C3: 调整预算数 | D3: 预计完成数 | E3: 决算数 | F3: 占预计完成% | G3: 占调整预算数%
A4: 一、利润收入 | B4: =SUM(B5:B35) -> 6278 | C4: =SUM(C5:C35) -> 6522 | E4: 6522 | G4: =E4/C4 -> 100.00%
A5: 烟草企业利润收入 | E5: 0
A6: 石油石化企业利润收入 | E6: 0
A7: 电力企业利润收入 | E7: 0
A8: 电信企业利润收入 | E8: 0
A9: 煤炭企业利润收入 | E9: 0
A10: 有色冶金采掘企业利润收入 | E10: 0
A11: 钢铁企业利润收入 | E11: 0
A12: 化工企业利润收入 | E12: 0
A13: 运输企业利润收入 | B13: 11 | E13: 0
A14: 电子企业利润收入 | E14: 0
A15: 机械企业利润收入 | E15: 0
A16: 投资服务企业利润收入 | B16: 6267 | C16: 6522 | E16: 0
A17: 纺织轻工企业利润收入 | E17: 0
A18: 贸易企业利润收入 | E18: 0
A19: 建筑施工企业利润收入 | E19: 0
A20: 房地产企业利润收入 | E20: 0
A21: 建材企业利润收入 | E21: 0
A22: 境外企业利润收入 | E22: 0
A23: 对外合作企业利润收入 | E23: 0
A24: 医药企业利润收入 | E24: 0
A25: 农林牧渔企业利润收入 | E25: 0
A26: 邮政企业利润收入 | E26: 0
A27: 军工企业利润收入 | E27: 0
A28: 转制科研院所利润收入 | E28: 0
A29: 地质勘查企业利润收入 | E29: 0
A30: 卫生体育福利企业利润收入 | E30: 0
A31: 教育文化广播企业利润收入 | E31: 0
A32: 科学研究企业利润收入 | E32: 0
A33: 机关社团所属企业利润收入 | E33: 0
A34: 金融企业利润收入 | E34: 0
A35: 其他国有资本经营预算企业利润收入 | E35: 6522
A36: 二、股利、股息收入 | E36: 0
A37: 国有控股公司股利、股息收入 | E37: 0
A38: 国有参股公司股利、股息收入 | E38: 0
A39: 金融企业公司股利、股息收入 | E39: 0
A40: 其他国有资本经营预算企业股利、股息收入 | E40: 0
A41: 三、产权转让收入 | C41: 76 | E41: 76 | G41: =E41/C41 -> 100.00%
A42: 国有股减持收入 | E42: 0
A43: 国有股权、股份转让收入 | C43: 76 | E43: 76 | G43: =E43/C43 -> 100.00%
A44: 国有独资企业产权转让收入 | E44: 0
A45: 金融企业产权转让收入 | E45: 0
A46: 其他国有资本经营预算企业产权转让收入 | E46: 0
A47: 四、清算收入 | E47: 0
A48: 国有股权、股份清算收入 | E48: 0
A49: 国有独资企业清算收入 | E49: 0
A50: 其他国有资本经营预算企业清算收入 | E50: 0
A51: 五、其他国有资本经营预算收入 | E51: 0
A53: 本 级 国 有 资 本 经 营 收 入 | B53: =B4+B36+B41+B47+B51 -> 6278 | C53: =C4+C36+C41+C47+C51 -> 6598 | E53: =E4+E36+E41+E47+E51 -> 6598 | G53: =E53/C53 -> 100.00%
A54: 上 年 结 转 收 入
A55: 收 入 合 计
A57: 转移性收入
A58: 国有资本经营预算转移支付收入
A60: 收 入 总 计 | B60: =B4+B36+B41+B47+B51 -> 6278 | C60: 6598 | E60: 6598 | G60: =E60/C60 -> 100.0%

Sheet 2017年随州市（州）国有资本经营支出情况表
A1: 2017年随州市（州）国有资本经营支出情况表
A2: 表十五 | D2: 单位：万元
A3: 项 目 | B3: 预算数 | C3: 决算数 | D3: 占预算数%
A4: 解决历史遗留问题及改革成本支出
A5: 厂办大集体改革支出
A6: “三供一业”移交补助支出
A7: 国有企业办职教幼教补助支出
A8: 国有企业办公共服务机构移交补助支出
A9: 国有企业退休人员社会化管理补助支出
A10: 国有企业棚户区改造支出
A11: 国有企业改革成本支出
A12: 离休干部医药费补助支出
A13: 其他解决历史遗留问题及改革成本支出
A14: 国有企业资本金注入 | B14: 6178 | D14: =C14/B14 -> 0.00%
A15: 国有经济结构调整支出
A16: 公益性设施投资支出
A17: 前瞻性战略性产业发展支出
A18: 生态环境保护支出
A19: 支持科技进步支出
A20: 保障国家经济安全支出
A21: 对外投资合作支出
A22: 其他国有企业资本金注入
A23: 国有企业政策性补贴(款)
A24: 国有企业政策性补贴(项)
A25: 金融国有资本经营预算支出
A26: 资本性支出
A27: 改革性支出
A28: 其他金融国有资本经营预算支出
A29: 其他国有资本经营预算支出(款) | B29: 220 | C29: 6,569 | D29: =C29/B29 -> 2985.91%
A30: 其他国有资本经营预算支出(项) | B30: 220 | C30: 6,569 | D30: =C30/B30 -> 2985.91%
A31: …
A32: 三、转移性支出
A33: …
A34: …
A35: …
A36: 调出资金 | C36: 29
A39: 国 有 资 本 经 营 支 出 | B39: 6398 | C39: =C29+C36 -> 6598 | D39: =C39/B39 -> 103.13%
A40: 结 转 下 年

Sheet 2017年本级国有资本经营支出情况表
A1: 2017年本级国有资本经营支出情况表
A2: 表十六 | G2: 单位：万元
A3: 项 目 | B3: 预算数 | C3: 调整预算数 | D3: 预计完成数 | E3: 决算数 | F3: 占预计完成% | G3: 占调整预算数%
A4: 一、国有资本经营支出 | B4: 6278 | C4: 6570 | E4: 6569 | G4: =E4/C4 -> 99.98%
A5: 社会保障和就业支出 | E5: 0
A6: 补充全国社会保障基金 | E6: 0
A7: 国有资本经营预算补充社保基金支出 | E7: 0
A8: 国有资本经营预算支出 | B8: =B19+B34 -> 6278 | C8: =C19+C34 -> 6570 | E8: 6569 | G8: =E8/C8 -> 99.98%
A9: 解决历史遗留问题及改革成本支出 | E9: 0
A10: 厂办大集体改革支出 | E10: 0
A11: "三供一业"移交补助支出 | E11: 0
A12: 国有企业办职教幼教补助支出 | E12: 0
A13: 国有企业办公共服务机构移交补助支出 | E13: 0
A14: 国有企业退休人员社会化管理补助支出 | E14: 0
A15: 国有企业棚户区改造支出 | E15: 0
A16: 国有企业改革成本支出 | E16: 0
A17: 离休干部医药费补助支出 | E17: 0
A18: 其他解决历史遗留问题及改革成本支出 | E18: 0
A19: 国有企业资本金注入 | B19: 6178 | C19: 6470 | E19: 0
A20: 国有经济结构调整支出 | E20: 0
A21: 公益性设施投资支出 | B21: 6178 | C21: 6470 | E21: 0
A22: 前瞻性战略性产业发展支出 | E22: 0
A23: 生态环境保护支出 | E23: 0
A24: 支持科技进步支出 | E24: 0
A25: 保障国家经济安全支出 | E25: 0
A26: 对外投资合作支出 | E26: 0
A27: 其他国有企业资本金注入 | E27: 0
A28: 国有企业政策性补贴(款) | E28: 0
A29: 国有企业政策性补贴(项) | E29: 0
A30: 金融国有资本经营预算支出 | E30: 0
A31: 资本性支出 | E31: 0
A32: 改革性支出 | E32: 0
A33: 其他金融国有资本经营预算支出 | E33: 0
A34: 其他国有资本经营预算支出(款) | B34: 100 | C34: 100 | E34: 6569 | G34: =E34/C34 -> 6569.00%
A35: 其他国有资本经营预算支出(项) | B35: 100 | C35: 100 | E35: 6569 | G35: =E35/C35 -> 6569.00%
A37: 二、调出资金 | C37: 28 | E37: 29 | G37: =E37/C37 -> 103.57%
A39: …
A40: 三、转移性支出
A41: 国有资本经营预算转移支付支出
A42: …
A44: 支 出 合 计 | B44: =B4+B37 -> 6278 | C44: =C4+C37 -> 6598 | E44: =E4+E37+E40 -> 6598 | G44: =E44/C44 -> 100.00%
A45: 结 转 下 年

Sheet 2017年本级国有资本经营专项转移支付情况表
A1: 2017年本级国有资本经营专项转移支付情况表
A2: 表十七 单位：万元
A3: 地 区 | B3: 合 计 | C3: 国有企业职教幼教退休补助资金 | D3: 三供一业分离移交补助资金
A5: 随州市本级

Sheet 2017年随州市市（州）社会保障基金收入情况表
A1: 2017年随州市市（州）社会保障基金收入情况表
A2: 表十八 | D2: 单位：万元
A3: 项 目 | B3: 预算数 | C3: 决算数 | D3: 占预算数%
A4: 一、企业职工基本养老保险基金收入 | B4: 178,587.00
A5: 其中：保险费收入 | B5: 71,925.63
A6: 财政补贴收入 | B6: 36,570.35
A7: 利息收入 | B7: 3,409.31
A8: 二、机关事业单位基本养老保险基金收入 | B8: 146,083.70
A9: 其中：保险费收入 | B9: 93,498.69
A10: 财政补贴收入 | B10: 52,585.01
A11: 利息收入
A12: 三、城乡居民基本养老保险基金收入 | B12: 47,759.97
A13: 其中：保险费收入 | B13: 10,809.48
A14: 财政补贴收入 | B14: 35,279.87
A15: 利息收入 | B15: 1,668.75
A16: 四、城镇职工基本医疗保险基金收入 | B16: 39,316.23
A17: 其中：保险费收入 | B17: 38,663.19
A18: 财政补贴收入
A19: 利息收入 | B19: 643.04
A20: 五、城乡居民基本医疗保险基金收入 | B20: 254,574.74
A21: 其中：保险费收入 | B21: 61,942.22
A22: 财政补贴收入 | B22: 189,736.67
A23: 利息收入 | B23: 2,895.85
A24: 六、失业保险基金收入 | B24: 1,731.45
A25: 其中：保险费收入 | B25: 1,530.28
A26: 财政补贴收入
A27: 利息收入 | B27: 169.50
A28: 七、工伤保险基金收入 | B28: 1,916.70
A29: 其中：保险费收入 | B29: 1,794.85
A30: 财政补贴收入
A31: 利息收入 | B31: 121.85
A32: 八、生育保险基金收入 | B32: 1,188.90
A33: 其中：保险费收入 | B33: 1,060.40
A34: 财政补贴收入
A35: 利息收入 | B35: 128.50
A37: 社会保险基金收入合计 | B37: =B4+B8+B12+B16+B20+B24+B28+B32 -> 671159
A38: 其中：保险费收入 | B38: =B5+B9+B13+B17+B21+B25+B29+B33 -> 281225
A39: 财政补贴收入 | B39: =B6+B10+B14+B18+B22+B26+B30+B34 -> 314172
A40: 利息收入 | B40: =B7+B11+B15+B19+B23+B27+B31+B35 -> 9037

Sheet 2017年本级社会保障基金收入情况表
A1: 2017年本级社会保障基金收入情况表
A2: 表十九 | D2: 单位：万元
A3: 项 目 | B3: 预算数 | C3: 决算数 | D3: 占预算数%
A4: 一、企业职工基本养老保险基金收入 | B4: 27,214.94
A5: 其中：保险费收入 | B5: 16,113.39
A6: 财政补贴收入 | B6: 5,379.80
A7: 利息收入 | B7: 1,016.00
A8: 二、机关事业单位基本养老保险基金收入 | B8: 14,000.34
A9: 其中：保险费收入 | B9: 8,176.34
A10: 财政补贴收入 | B10: 5,824.00
A11: 利息收入
A12: 三、城乡居民基本养老保险基金收入
A13: 其中：保险费收入
A14: 财政补贴收入
A15: 利息收入
A16: 四、城镇职工基本医疗保险基金收入 | B16: 11,269.77
A17: 其中：保险费收入 | B17: 10,968.77
A18: 财政补贴收入
A19: 利息收入 | B19: 291.00
A20: 五、城乡居民基本医疗保险基金收入
A21: 其中：保险费收入
A22: 财政补贴收入
A23: 利息收入
A24: 六、失业保险基金收入 | B24: 922.42
A25: 其中：保险费收入 | B25: 847.00
A26: 财政补贴收入
A27: 利息收入 | B27: 75.00
A28: 七、工伤保险基金收入 | B28: 771.97
A29: 其中：保险费收入 | B29: 721.97
A30: 财政补贴收入
A31: 利息收入 | B31: 50.00
A32: 八、生育保险基金收入 | B32: 528.22
A33: 其中：保险费收入 | B33: 468.22
A34: 财政补贴收入
A35: 利息收入 | B35: 60.00
A37: 社会保险基金收入合计 | B37: =B4+B8+B16+B24+B28+B32 -> 54708
A38: 其中：保险费收入 | B38: =B5+B9+B17+B25+B29+B33 -> 37296
A39: 财政补贴收入 | B39: =B6+B10+B18+B26+B30+B34 -> 11204
A40: 利息收入 | B40: =B7+B19+B27+B31+B35 -> 1492

Sheet 2017年随州市市（州）社会保障基金支出情况表
A1: 2017年随州市市（州）社会保障基金支出情况表
A2: 表二十 | F2: 单位：万元
A3: 项 目 | B3: 预算数 | C3: 预计完成数 | D3: 决算数 | E3: 占预计完成% | F3: 占预算数%
A4: 一、企业职工基本养老保险基金支出 | B4: 192,246.01
A5: 其中：基本养老金支出 | B5: 186,010.60
A6: 二、机关事业单位基本养老保险基金支出 | B6: 146,079.07
A7: 其中：基本养老金支出 | B7: 146,079.07
A8: 三、城乡居民基本养老保险基金支出 | B8: 34,097.80
A9: 其中：基本养老金支出 | B9: 34,093.72
A10: 四、城镇职工基本医疗保险基金支出 | B10: 35,519.38
A11: 其中：基本医疗保险待遇支出 | B11: 35,489.38
A12: 五、城乡居民基本医疗保险基金支出 | B12: 246,613.07
A13: 其中：基本医疗保险待遇支出 | B13: 233,547.62
A14: 六、失业保险基金支出 | B14: 1,329.11
A15: 其中：失业保险金支出 | B15: 1,328.85
A16: 七、工伤保险基金支出 | B16: 1,171.98
A17: 其中：工伤保险待遇支出 | B17: 964.88
A18: 八、生育保险基金支出 | B18: 1,093.26
A19: 其中：生育保险待遇支出 | B19: 1,093.26
A21: 社会保险基金支出合计 | B21: =B4+B6+B8+B10+B12+B14+B16+B18 -> 658150
A22: 其中：社会保险待遇支出 | B22: 638607

Sheet 2017年本级社会保障基金支出情况表
A1: 2017年本级社会保障基金支出情况表
A2: 表二十一 | D2: 单位：万元
A3: 项 目 | B3: 预算数 | C3: 决算数 | D3: 预计完成数 | E3: 占预算数%
A4: 一、企业职工基本养老保险基金支出 | B4: 28,017.62
A5: 其中：基本养老金支出 | B5: 26,580.49
A6: 二、机关事业单位基本养老保险基金支出 | B6: 13,999.14
A7: 其中：基本养老金支出 | B7: 13,999.14
A8: 三、城乡居民基本养老保险基金支出
A9: 其中：基本养老金支出
A10: 四、城镇职工基本医疗保险基金支出 | B10: 10,699.12
A11: 其中：基本医疗保险待遇支出 | B11: 10,669.12
A12: 五、城乡居民基本医疗保险基金支出
A13: 其中：基本医疗保险待遇支出
A14: 六、失业保险基金支出 | B14: 866.93
A15: 其中：失业保险金支出 | B15: 866.67
A16: 七、工伤保险基金支出 | B16: 482.17
A17: 其中：工伤保险待遇支出 | B17: 332.17
A18: 八、生育保险基金支出 | B18: 602.54
A19: 其中：生育保险待遇支出 | B19: 602.54
A21: 社会保险基金支出合计 | B21: =B4+B6+B10+B14+B16+B18 -> 54668
A22: 其中：社会保险待遇支出 | B22: =B5+B7+B11+B15+B17+B19 -> 53050

Sheet 2017年随州市市（州）财政收入情况表
A1: 2017年随州市（州）财政收入情况表
A2: 表二十二 | G2: 单位：万元
A3: 项 目 | B3: 预算数 | C3: 调整预算数 | D3: 预计完成数 | E3: 决算数 | F3: 占预计完成% | G3: 占调整预算数%
A4: 一、一般公共预算收入 | B4: ='2017年随州市（州）一般公共预算收入情况表'!B30 -> 487303.10 | E4: 485962
A5: 其中：本级收入 | B5: ='2017年本级一般公共预算收入情况表'!B4 -> 132992.00 | C5: ='2017年本级一般公共预算收入情况表'!C4 -> 127357.00 | E5: 125819 | G5: =E5/C5 -> 98.8%
A6: 二、政府性基金收入 | B6: ='2017年随州市（州）政府性基金收入情况表'!B26 -> 170702.00 | E6: 132821
A7: 其中：本级收入 | B7: ='2017年本级政府性基金收入情况表'!B32 -> 87243.00 | C7: ='2017年本级政府性基金收入情况表'!D32 -> 66355.00 | E7: 55112 | G7: 83.1%
A8: 三、国有资本经营收入 | B8: ='2017年随州市（州）国有资本经营收入情况表'!B56 -> 6398.00 | E8: 6598
A9: 其中：本级收入 | B9: ='2017年本级国有资本经营收入情况表'!B60 -> 6278.00 | C9: ='2017年本级国有资本经营收入情况表'!C60 -> 6598.00 | E9: 6598 | G9: 100.0%
A12: 收 入 合 计 | B12: =B4+B6+B8 -> 664403.10 | C12: =C4+C6+C8 -> 0.00 | D12: 0.00 | E12: =E4+E6+E8 -> 625381
A13: 其中：本级收入 | B13: =B5+B7+B9 -> 226513.00 | C13: =C5+C7+C9 -> 200310.00 | E13: =E5+E7+E9 -> 187529 | G13: 93.6%

Sheet 2017年随州市市（州）财政支出情况表
A1: 2017年随州市（州）财政支出情况表
A2: 表二十三 | G2: 单位：万元
A3: 项 目 | B3: 预算数 | C3: 调整预算数 | D3: 预计完成数 | E3: 决算数 | F3: 占预计完成% | G3: 占调整预算数%
A4: 一、一般公共预算支出 | B4: ='2017年随州市（州）一般公共预算支出情况表'!B31 -> 1495635.94 | E4: 1529807
A5: 其中：本级支出 | B5: ='2017年本级一般公共预算'!C4 -> 251074.43 | C5: ='2017年本级一般公共预算'!D4 -> 276446.91 | E5: 256836 | G5: =E5/C5 -> 92.9%
A6: 二、政府性基金支出 | B6: ='2017年随州市（州）政府性基金支出情况表'!B16 -> 151709.47 | E6: 363152
A7: 其中：本级支出 | B7: ='2017年本级政府性基金支出情况表'!C194 -> 84951.00 | C7: ='2017年本级政府性基金支出情况表'!E194 -> 120710.00 | E7: 119666 | G7: 99.1%
A8: 三、国有资本经营支出 | B8: ='2017年随州市（州）国有资本经营支出情况表'!B39 -> 6398.00 | E8: 6569
A9: 其中：本级支出 | B9: ='2017年本级国有资本经营支出情况表'!B4 -> 6278.00 | C9: ='2017年本级国有资本经营支出情况表'!C4 -> 6570.00 | E9: 6569 | G9: 100.0%
A12: 支 出 合 计 | B12: =B4+B6+B8 -> 1653743.41 | E12: =E4+E6+E8 -> 1899528
A13: 其中：本级支出 | B13: =B5+B7+B9 -> 342303.43 | C13: =C5+C7+C9 -> 403726.91 | E13: =E5+E7+E9 -> 383071 | G13: 94.9%
